bitfinex/quotes_ETHUSD_20250605
["timestamp","ask_amount","ask_price","bid_price","bid_amount"]
[1749163406311,7.1114227,2428.0,2427.9,24.00403456]
[1749163407412,7.1104227,2428.0,2427.9,24.00403456]
[1749163409214,7.1104227,2428.0,2427.9,20.11878578]
[1749163409432,7.1094227,2428.0,2427.9,30.18280978]
[1749163410326,0.1194227,2428.0,2427.9,30.18280978]
[1749163410526,7.1094227,2428.0,2427.9,30.18280978]
[1749163411153,7.1094227,2428.0,2427.9,31.96953278]
[1749163411154,7.1084227,2428.0,2427.9,31.96953278]
[1749163411314,0.1194227,2428.0,2427.9,31.96953278]
[1749163411516,7.1084227,2428.0,2427.9,31.96953278]
[1749163411918,0.1194227,2428.0,2427.9,31.96953278]
[1749163412118,2.15113318,2429.1,2429.0,4.11692054]
[1749163412372,9.14013318,2429.1,2429.0,20.11692054]
[1749163412529,2.15113318,2429.1,2429.0,20.11692054]
[1749163413101,9.13913318,2429.1,2429.0,20.11692054]
[1749163414329,2.15113318,2429.1,2429.0,20.11692054]
[1749163414614,9.13913318,2429.1,2429.0,20.11692054]
[1749163416530,9.13813318,2429.1,2429.0,20.11692054]
[1749163418551,2.15113318,2429.1,2429.0,20.11692054]
[1749163418781,9.13713318,2429.1,2429.0,20.11692054]
[1749163418967,2.15113318,2429.1,2429.0,20.11692054]
[1749163419165,9.13713318,2429.1,2429.0,24.00216932]
[1749163419491,9.13713318,2429.1,2429.0,26.37632932]
[1749163419640,9.13713318,2429.1,2429.0,26.35317732]
[1749163419970,9.13713318,2429.1,2429.0,22.46792854]
[1749163420193,9.13713318,2429.1,2429.0,20.11692054]
[1749163420945,2.15113318,2429.1,2429.0,33.38972426]
[1749163421171,9.13613318,2429.1,2429.0,31.25725258]
[1749163421389,9.13613318,2429.1,2429.0,20.11692054]
[1749163422637,2.15113318,2429.1,2429.0,20.11692054]
[1749163422841,9.13513318,2429.1,2429.0,20.11692054]
[1749163423049,9.13513318,2429.1,2429.0,27.10292632]
[1749163423283,9.13513318,2429.1,2429.0,26.50029632]
[1749163423487,9.13513318,2429.1,2429.0,24.00216932]
[1749163424282,2.15113318,2429.1,2429.0,30.62482132]
[1749163424451,9.13513318,2429.1,2429.0,26.64610332]
[1749163424659,9.13513318,2429.1,2429.0,20.11692054]
[1749163425541,2.15113318,2429.1,2429.0,22.94296554]
[1749163425746,9.13413318,2429.1,2429.0,26.47564632]
[1749163426249,9.13413318,2429.1,2429.0,26.61016932]
[1749163426553,9.13413318,2429.1,2429.0,28.46248632]
[1749163426876,9.13413318,2429.1,2429.0,32.11941532]
[1749163427055,2.15113318,2429.1,2429.0,32.11941532]
[1749163427262,9.13413318,2429.1,2429.0,31.56941532]
[1749163427578,2.15113318,2429.1,2429.0,27.67078732]
[1749163427777,9.13413318,2429.1,2429.0,27.67078732]
[1749163427980,9.13413318,2429.1,2429.0,23.78553854]
[1749163428145,9.13413318,2429.1,2429.0,20.11692054]
[1749163429770,2.15113318,2429.1,2429.0,55.02965626]
[1749163429971,2.15113318,2429.1,2429.0,55.53245136]
[1749163430785,2.15113318,2429.1,2429.0,30.15459036]
[1749163431379,2.15113318,2429.1,2429.0,29.65179526]
[1749163431565,9.13313318,2429.1,2429.0,29.65179526]
[1749163431892,2.15113318,2429.1,2429.0,29.65179526]
[1749163432192,9.13313318,2429.1,2429.0,30.88782126]
[1749163433292,9.13313318,2429.1,2429.0,28.66505054]
[1749163433456,9.13313318,2429.1,2429.0,26.03905054]
[1749163433662,9.13313318,2429.1,2429.0,9.48905054]
[1749163433863,9.13313318,2429.1,2429.0,11.63570732]
[1749163434063,2.15113318,2429.1,2429.0,26.14000732]
[1749163434298,2.15113318,2429.1,2429.0,26.69000732]
[1749163434495,9.13213318,2429.1,2429.0,30.5752561]
[1749163434707,9.13213318,2429.1,2429.0,26.69000732]
[1749163435203,9.13213318,2429.1,2429.0,30.48483732]
[1749163436304,2.15113318,2429.1,2429.0,34.3700861]
[1749163436469,9.13213318,2429.1,2429.0,30.48483732]
[1749163437199,2.15113318,2429.1,2429.0,30.48483732]
[1749163437695,9.13213318,2429.1,2429.0,30.48483732]
[1749163438262,2.15113318,2429.1,2429.0,30.54902332]
[1749163438476,9.13213318,2429.1,2429.0,4.11692054]
[1749163438866,2.15113318,2429.1,2429.0,24.00216932]
[1749163439073,2.15113318,2429.1,2429.0,8.00216932]
[1749163439274,9.13213318,2429.1,2429.0,8.00216932]
[1749163439573,9.13213318,2429.1,2429.0,24.00216932]
[1749163440501,10.7988465,2429.1,2429.0,4.11692054]
[1749163440795,10.7988465,2429.1,2429.0,20.11692054]
[1749163440998,3.8178465,2429.1,2429.0,20.11692054]
[1749163441218,9.88563318,2429.1,2429.0,20.11692054]
[1749163441571,9.88563318,2429.1,2429.0,4.11692054]
[1749163441809,10.26648225,2429.1,2429.0,4.11692054]
[1749163441979,9.88563318,2429.1,2429.0,4.11692054]
[1749163442580,0.7535,2429.0,2428.4,4.11779074]
[1749163442904,0.7535,2428.5,2428.4,4.11793773]
[1749163443104,8.49590369,2428.5,2428.4,4.11793773]
[1749163443306,7.7345,2428.5,2428.4,4.11793773]
[1749163443606,0.7535,2428.5,2428.4,20.11793773]
[1749163443793,7.7345,2428.5,2428.4,20.11793773]
[1749163445976,7.7355,2428.5,2428.4,20.11793773]
[1749163446309,0.7535,2428.5,2428.4,20.11793773]
[1749163446509,7.7355,2428.5,2428.4,20.11793773]
[1749163446875,8.50905,2428.5,2428.4,20.11793773]
[1749163447280,7.7355,2428.5,2428.4,20.11793773]
[1749163447476,0.7535,2428.5,2428.4,20.11793773]
[1749163447899,7.7355,2428.5,2428.4,20.11793773]
[1749163448988,7.7365,2428.5,2428.4,20.11793773]
[1749163451496,0.7535,2428.5,2428.4,20.11793773]
[1749163451693,7.7365,2428.5,2428.4,20.11793773]
[1749163455099,0.7535,2428.5,2428.4,20.11793773]
[1749163455301,7.7365,2428.5,2428.4,20.11793773]
[1749163457713,2.15113318,2429.1,2429.0,4.11692054]
[1749163457917,12.0352465,2429.1,2429.0,4.11692054]
[1749163458307,12.8126465,2429.1,2429.0,4.11692054]
[1749163459824,3.9336465,2429.1,2429.0,4.11692054]
[1749163460008,12.8126465,2429.1,2429.0,4.11692054]
[1749163460206,3.9336465,2429.1,2429.0,4.11692054]
[1749163460609,12.8126465,2429.1,2429.0,4.11692054]
[1749163461829,12.8126465,2429.1,2428.9,4.11694671]
[1749163462130,0.7774,2428.9,2428.8,4.11725955]
[1749163462910,0.7774,2428.9,2428.6,4.11749951]
[1749163463231,0.7774,2428.7,2428.6,4.11759861]
[1749163463728,9.6564,2428.7,2428.6,4.11759861]
[1749163464429,7.7604,2428.7,2428.6,4.11759861]
[1749163464629,8.72604,2428.7,2428.6,4.11759861]
[1749163466433,1.74304,2428.7,2428.6,4.11759861]
[1749163466638,7.7604,2428.7,2428.6,4.11759861]
[1749163469436,0.7774,2428.7,2428.6,4.11759861]
[1749163469631,2.6758,2428.8,2428.7,4.11736789]
[1749163469831,10.63426308,2428.8,2428.7,4.11736789]
[1749163470034,12.64369809,2428.8,2428.7,4.11736789]
[1749163470236,0.7887,2428.7,2428.6,4.11750417]
[1749163470442,1.76416308,2428.7,2428.6,4.11750417]
[1749163470610,2.52733181,2428.7,2428.6,4.11750417]
[1749163470808,4.23418082,2428.7,2428.6,4.11750417]
[1749163471008,0.754,2428.6,2428.4,4.11783818]
[1749163471208,0.754,2428.6,2428.5,4.11776816]
[1749163471538,0.754,2428.5,2428.4,4.11793773]
[1749163471736,2.33985307,2428.5,2428.4,4.11793773]
[1749163472041,3.63600626,2428.5,2428.4,4.11793773]
[1749163472237,3.63597856,2428.5,2428.4,4.11793773]
[1749163472539,3.63596063,2428.5,2428.4,4.11793773]
[1749163472734,3.40703527,2428.5,2428.4,4.11793773]
[1749163472941,2.87290655,2428.5,2428.4,4.11793773]
[1749163473106,2.64399713,2428.5,2428.4,4.11793773]
[1749163473638,3.25442481,2428.5,2428.4,4.11793773]
[1749163473855,2.64399713,2428.5,2428.4,4.11793773]
[1749163474060,3.40703525,2428.5,2428.4,4.11793773]
[1749163474235,3.406444,2428.5,2428.4,4.11793773]
[1749163474548,2.64399713,2428.5,2428.4,4.11793773]
[1749163475118,3.02484267,2428.5,2428.4,4.11793773]
[1749163475437,3.02484259,2428.5,2428.4,4.11793773]
[1749163475742,3.40568467,2428.5,2428.4,4.11793773]
[1749163475941,3.40568467,2428.5,2428.3,4.11800306]
[1749163476131,1.66861365,2428.5,2428.4,4.11793773]
[1749163476314,9.62691989,2428.5,2428.4,4.11793773]
[1749163477109,10.38830277,2428.5,2428.4,4.11793773]
[1749163477326,10.00761196,2428.5,2428.4,4.11793773]
[1749163477530,0.8159,2428.4,2427.5,16.0]
[1749163477733,0.8159,2428.2,2428.1,4.11842882]
[1749163478041,1.19658295,2428.2,2428.1,4.11842882]
[1749163478345,0.97474091,2428.3,2428.2,4.11827691]
[1749163478643,1.61391219,2428.8,2428.7,4.11742907]
[1749163478644,0.8159,2428.8,2428.7,4.11742907]
[1749163478838,10.12803139,2428.8,2428.7,4.11742907]
[1749163479004,9.36665648,2428.8,2428.7,4.11742907]
[1749163479207,10.12802296,2428.8,2428.7,4.11742907]
[1749163479416,9.36765648,2428.8,2428.7,4.11742907]
[1749163479620,10.12899979,2428.8,2428.7,4.11742907]
[1749163479839,9.74832948,2428.8,2428.7,4.11742907]
[1749163480045,9.36765648,2428.8,2428.7,4.11742907]
[1749163481040,10.1291679,2428.8,2428.7,4.11742907]
[1749163481547,9.74833483,2428.8,2428.7,4.11742907]
[1749163481742,9.36765648,2428.8,2428.7,4.11742907]
[1749163482141,9.74851702,2428.8,2428.7,4.11742907]
[1749163482472,2.55262293,2428.8,2428.7,4.11742907]
[1749163482647,9.53462293,2428.8,2428.7,4.11742907]
[1749163483045,2.55284668,2428.8,2428.7,4.11742907]
[1749163483248,1.19699127,2428.8,2428.7,4.11742907]
[1749163483414,7.7979,2428.8,2428.7,4.11742907]
[1749163483615,8.1789948,2428.8,2428.7,4.11742907]
[1749163483835,8.77346588,2428.8,2428.7,4.11742907]
[1749163484036,7.7979,2428.8,2428.7,4.11742907]
[1749163484239,9.15461313,2428.8,2428.7,4.11742907]
[1749163484434,9.53579361,2428.8,2428.7,4.11742907]
[1749163484835,9.53582636,2428.8,2428.7,4.11742907]
[1749163485036,8.17914499,2428.8,2428.7,4.11742907]
[1749163485348,8.77366282,2428.8,2428.7,4.11742907]
[1749163485546,10.03227065,2428.8,2428.7,4.11742907]
[1749163485747,9.6510291,2428.8,2428.7,4.11742907]
[1749163485911,10.03226938,2428.8,2428.7,4.11742907]
[1749163486118,9.6510291,2428.8,2428.7,4.11742907]
[1749163486436,10.41350087,2428.8,2428.7,4.11742907]
[1749163486640,10.41250466,2428.8,2428.7,4.11742907]
[1749163486827,10.03127043,2428.8,2428.7,4.11742907]
[1749163487024,0.8079,2428.7,2428.3,4.11797538]
[1749163487253,3.88159607,2428.4,2428.2,4.11813812]
[1749163487417,3.88159607,2428.4,2427.7,16.0]
[1749163487418,0.8079,2428.2,2428.1,4.11835469]
[1749163487617,2.54583337,2428.2,2428.1,4.11835469]
[1749163487947,3.88650232,2428.2,2428.1,4.11835469]
[1749163488517,3.50533002,2428.2,2428.1,4.11835469]
[1749163488714,7.00594652,2428.2,2427.1,5.77659607]
[1749163488920,0.7856,2427.9,2427.8,4.11879519]
[1749163489147,7.7666,2427.9,2427.8,4.11879519]
[1749163489463,8.14755935,2427.9,2427.8,4.11879519]
[1749163489668,8.14755173,2427.9,2427.8,4.11879519]
[1749163490025,7.7666,2427.9,2427.8,4.11879519]
[1749163490236,8.14720588,2427.9,2427.8,4.11879519]
[1749163490531,8.14721699,2427.9,2427.8,4.11879519]
[1749163490739,7.7666,2427.9,2427.8,4.11879519]
[1749163491350,8.14721041,2427.9,2427.8,4.11879519]
[1749163491875,9.25627544,2427.9,2427.8,4.11879519]
[1749163492022,9.25614541,2427.9,2427.8,4.11879519]
[1749163492218,8.87566503,2427.9,2427.8,4.11879519]
[1749163492785,9.25614187,2427.9,2427.8,4.11879519]
[1749163492924,9.2561495,2427.9,2427.8,4.11879519]
[1749163493129,9.25614886,2427.9,2427.8,4.11879519]
[1749163493834,1.16609051,2427.9,2427.8,4.11879519]
[1749163494158,8.14709052,2427.9,2427.8,4.11879519]
[1749163494456,8.14725037,2427.9,2427.8,4.11879519]
[1749163494661,7.7666,2427.9,2427.8,4.11879519]
[1749163494960,8.14728971,2427.9,2427.8,4.11879519]
[1749163495261,9.31042791,2427.9,2427.8,4.11879519]
[1749163495463,9.31045938,2427.9,2427.8,4.11879519]
[1749163495763,8.92964844,2427.9,2427.8,4.11879519]
[1749163496062,8.92964844,2427.9,2427.2,4.11997363]
[1749163496063,0.7883,2427.8,2427.0,20.12016331]
[1749163496232,4.66989607,2427.8,2427.5,4.11945678]
[1749163496433,0.7883,2427.6,2427.5,4.11945678]
[1749163496740,1.16927858,2427.6,2427.5,4.11945678]
[1749163497130,1.16926478,2427.6,2427.5,4.11945678]
[1749163497331,0.7883,2427.6,2427.5,4.11945678]
[1749163497746,0.7883,2427.6,2427.4,4.11956612]
[1749163497947,7.18796945,2427.5,2427.4,4.11956612]
[1749163498269,7.56863942,2427.5,2427.3,4.11972201]
[1749163498434,0.7539,2427.4,2427.0,16.0]
[1749163498634,0.7539,2427.4,2427.3,4.11968582]
[1749163498840,2.5063776,2427.4,2427.3,4.11968582]
[1749163499138,2.12574655,2427.4,2427.3,4.11980389]
[1749163499737,2.50642735,2427.4,2427.3,4.11980389]
[1749163500082,2.12574655,2427.4,2427.3,4.11980389]
[1749163500981,1.97174486,2428.0,2427.8,4.11895543]
[1749163501179,1.97174486,2428.0,2427.3,3.88159607]
[1749163501180,1.72900387,2428.3,2428.2,4.11827691]
[1749163501488,5.97936005,2428.3,2427.8,4.11883256]
[1749163501667,0.7539,2428.2,2427.6,16.0]
[1749163501876,0.7539,2428.2,2428.1,4.11844652]
[1749163502241,6.981,2428.2,2428.1,4.11844652]
[1749163503092,7.36227619,2428.2,2428.1,4.11844652]
[1749163503239,9.34872887,2428.2,2428.1,4.11844652]
[1749163503440,8.96746688,2428.2,2428.1,4.11844652]
[1749163503688,9.34868184,2428.2,2428.0,4.11860923]
[1749163503869,1.98646688,2428.2,2428.0,4.11860923]
[1749163504046,7.66409633,2428.1,2428.0,4.11860923]
[1749163504242,10.95579633,2428.1,2427.5,16.0]
[1749163504551,8.48179633,2428.1,2427.9,4.11863536]
[1749163504756,8.48179633,2428.1,2428.0,4.11861614]
[1749163504970,8.8630137,2428.1,2428.0,4.11861614]
[1749163505183,10.95579633,2428.1,2428.0,4.11861614]
[1749163505400,3.97479633,2428.1,2428.0,4.11861614]
[1749163505595,11.33605414,2428.1,2428.0,4.11861614]
[1749163505786,10.95479633,2428.1,2428.0,4.11861614]
[1749163505986,10.95479633,2428.1,2427.9,4.11867946]
[1749163506184,10.95479633,2428.1,2427.8,4.11894356]
[1749163506185,1.6752679,2428.0,2427.8,4.11894356]
[1749163506400,1.29412632,2428.0,2427.8,4.11894356]
[1749163506607,4.69929607,2427.9,2426.6,4.12088934]
[1749163506763,4.69929607,2427.9,2427.5,4.11939616]
[1749163506764,8.81809758,2427.9,2427.5,4.11939616]
[1749163507105,1.25861293,2427.8,2427.5,4.11939616]
[1749163507406,6.98,2427.7,2427.6,4.11927288]
[1749163508577,7.36175069,2427.7,2427.6,4.11927288]
[1749163508794,6.98,2427.7,2427.6,4.11927288]
[1749163509261,7.36196837,2427.7,2427.6,4.11927288]
[1749163509457,1.38530719,2427.7,2427.6,4.11927288]
[1749163509765,4.74520161,2428.0,2427.8,4.11888331]
[1749163510068,2.474,2428.0,2427.9,4.11878578]
[1749163510285,9.454,2428.0,2427.9,4.11878578]
[1749163510685,10.43107529,2428.0,2427.8,4.11895201]
[1749163510991,10.43107529,2428.0,2427.9,4.11878578]
[1749163511194,12.50872834,2428.0,2427.8,4.11885908]
[1749163511402,0.38224758,2427.9,2427.8,4.11885908]
[1749163511693,6.98,2427.9,2427.8,20.11885908]
[1749163512097,6.98,2427.9,2427.8,16.0]
[1749163512400,7.3623798,2427.9,2427.8,20.11895543]
[1749163512609,6.98,2427.9,2427.8,16.0]
[1749163512813,0.8145,2427.8,2427.6,4.11919481]
[1749163513015,2.474,2427.6,2427.4,4.11957024]
[1749163513215,6.98,2427.5,2427.0,4.12031314]
[1749163513402,6.98,2427.5,2427.4,4.11963417]
[1749163513786,7.36314805,2427.5,2427.4,4.11963417]
[1749163513982,7.36314805,2427.5,2427.3,4.11976111]
[1749163513983,0.97867748,2427.7,2427.6,4.11929477]
[1749163514178,1.22134411,2428.0,2427.8,4.11895543]
[1749163514179,1.20857627,2427.9,2427.8,4.11895543]
[1749163514383,9.33915194,2427.9,2427.8,4.11895543]
[1749163514585,9.10925526,2427.9,2427.8,4.11895543]
[1749163514802,9.10934447,2427.9,2427.8,4.11895543]
[1749163515006,8.13068892,2427.9,2427.8,4.11895543]
[1749163515215,8.34369385,2427.9,2427.8,4.11895543]
[1749163515801,8.72705427,2427.9,2427.8,4.11895543]
[1749163516006,8.34369385,2427.9,2427.8,4.11895543]
[1749163516328,9.11049619,2427.9,2427.8,4.11895543]
[1749163516681,9.11049619,2427.9,2427.6,4.11917727]
[1749163516881,1.96558584,2427.8,2427.7,4.11905849]
[1749163517082,2.34876921,2427.8,2427.7,4.11905849]
[1749163517278,1.96558584,2427.8,2427.7,4.11905849]
[1749163517484,2.34862679,2427.8,2427.7,4.11905849]
[1749163517710,2.73166629,2427.8,2427.7,4.11905849]
[1749163518507,2.73224375,2427.8,2427.7,4.11905849]
[1749163518719,2.34892178,2427.8,2427.7,4.11905849]
[1749163518885,2.73227162,2427.8,2427.7,4.11905849]
[1749163519214,1.96558584,2427.8,2427.7,4.11905849]
[1749163519417,2.34899376,2427.8,2427.7,4.11905849]
[1749163519617,1.96558584,2427.8,2427.7,4.11905849]
[1749163520121,2.73248009,2427.8,2427.7,4.11905849]
[1749163520325,1.7464655,2427.8,2427.7,4.11905849]
[1749163520523,0.97943622,2427.8,2427.7,4.11905849]
[1749163520913,1.74651827,2427.8,2427.7,4.11905849]
[1749163521117,0.97943622,2427.8,2427.7,4.11905849]
[1749163521425,1.36299348,2427.8,2427.7,4.11905849]
[1749163521631,1.74666166,2427.8,2427.7,4.11905849]
[1749163521830,1.36304894,2427.8,2427.7,4.11905849]
[1749163522139,1.36313019,2427.8,2427.7,4.11905849]
[1749163522342,0.97943622,2427.8,2427.7,4.11905849]
[1749163522494,1.36313278,2427.8,2427.7,4.11905849]
[1749163522697,0.97943622,2427.8,2427.7,4.11905849]
[1749163522932,1.74684038,2427.8,2427.7,4.11905849]
[1749163523349,1.74684257,2427.8,2427.7,4.11905849]
[1749163523701,1.36315695,2427.8,2427.7,4.11905849]
[1749163524056,2.04941209,2427.8,2427.7,4.11905849]
[1749163524401,2.43327608,2427.8,2427.7,4.11905849]
[1749163524605,2.04941209,2427.8,2427.7,4.11905849]
[1749163525141,2.81721754,2427.8,2427.7,4.11905849]
[1749163525328,2.04941209,2427.8,2427.7,4.11905849]
[1749163525639,4.90737144,2427.8,2427.3,16.0]
[1749163525839,4.90737144,2427.8,2427.2,4.11987739]
[1749163525840,8.32807758,2427.7,2427.2,4.11987739]
[1749163526024,4.11970571,2427.4,2426.3,4.1213505]
[1749163526228,0.781,2426.9,2425.5,4.50275065]
[1749163526424,9.17878033,2426.8,2425.9,4.12218145]
[1749163526602,8.34106524,2426.7,2426.6,4.12099233]
[1749163526940,2.97284395,2426.7,2426.6,20.12099233]
[1749163527233,8.72456395,2426.7,2426.6,4.12099233]
[1749163527403,7.95743622,2426.7,2426.6,20.12099233]
[1749163527730,7.95743622,2426.7,2425.9,4.12203396]
[1749163527731,9.12209331,2426.7,2425.6,0.51283565]
[1749163527916,0.97943622,2426.6,2426.2,4.12158952]
[1749163528117,1.9768053,2426.5,2426.3,4.121481]
[1749163528328,0.99736908,2426.4,2426.3,20.121481]
[1749163528501,0.7672066,2426.4,2426.3,20.121481]
[1749163528698,6.978,2426.4,2426.3,20.121481]
[1749163528901,0.824,2427.0,2426.9,20.12048292]
[1749163529100,9.52845882,2427.4,2427.0,20.12031314]
[1749163529101,0.38254784,2427.1,2427.0,20.12031314]
[1749163529355,7.9,2427.4,2427.3,4.11980389]
[1749163529648,14.878,2427.4,2427.3,4.11980389]
[1749163529996,15.26061387,2427.4,2427.3,4.11980389]
[1749163530821,14.878,2427.4,2427.3,4.11980389]
[1749163531018,15.26044167,2427.4,2427.3,4.11980389]
[1749163531232,7.9,2427.4,2427.3,4.11980389]
[1749163531488,14.878,2427.4,2427.3,4.11980389]
[1749163532135,15.26045336,2427.4,2427.3,4.11980389]
[1749163532335,14.878,2427.4,2427.3,4.11980389]
[1749163532637,16.88453714,2427.4,2427.3,4.11980389]
[1749163532972,14.878,2427.4,2427.3,4.11980389]
[1749163533471,1.22413012,2428.2,2427.5,4.11946446]
[1749163533671,0.97996047,2428.8,2428.5,4.11776816]
[1749163533855,3.3752633,2429.1,2428.5,4.11776816]
[1749163533856,7.20670402,2428.6,2428.5,4.11776816]
[1749163534435,7.92737442,2428.6,2428.5,4.11776816]
[1749163535051,7.92737442,2428.6,2428.4,4.11789701]
[1749163535449,0.38272819,2428.5,2428.4,4.11789701]
[1749163535671,0.38238044,2428.5,2428.4,4.11789701]
[1749163536189,7.92737442,2428.6,2428.5,4.11776816]
[1749163536338,8.30972731,2428.6,2428.5,4.11776816]
[1749163536533,7.20570402,2428.6,2428.5,4.11776816]
[1749163536834,0.22870402,2428.6,2428.5,4.11776816]
[1749163537039,7.20570402,2428.6,2428.5,4.11776816]
[1749163537568,0.22870402,2428.6,2428.5,4.11776816]
[1749163537739,7.20570402,2428.6,2428.5,4.11776816]
[1749163537939,7.92627442,2428.6,2428.5,4.11776816]
[1749163540374,7.20570402,2428.6,2428.5,4.11776816]
[1749163541093,0.55,2428.4,2427.2,8.23994726]
[1749163541298,0.38200119,2428.3,2427.4,4.11950531]
[1749163541444,7.35795915,2428.2,2428.1,4.11830274]
[1749163541640,6.976,2428.2,2428.1,4.11830274]
[1749163541837,6.976,2428.2,2427.6,4.11913963]
[1749163542164,6.976,2428.2,2428.0,4.11861614]
[1749163542165,7.88139682,2428.2,2428.0,4.11861614]
[1749163542336,6.976,2428.2,2428.1,4.11844652]
[1749163542538,7.35815558,2428.2,2428.1,4.11844652]
[1749163542970,6.976,2428.2,2428.1,4.11844652]
[1749163543173,7.35820517,2428.2,2428.1,4.11844652]
[1749163543374,7.35819715,2428.2,2428.1,4.11844652]
[1749163543573,7.91961654,2428.2,2428.1,4.11844652]
[1749163543998,5.44112301,2428.1,2427.6,4.11920136]
[1749163544197,0.38219873,2428.0,2427.8,4.11893498]
[1749163544345,0.38219873,2427.9,2427.6,4.11917632]
[1749163544545,6.975,2427.8,2427.7,4.11912509]
[1749163545794,6.975,2427.8,2427.6,4.11922312]
[1749163545975,0.6975,2427.7,2427.6,4.11929477]
[1749163546399,6.975,2427.8,2427.7,4.11912509]
[1749163547392,7.9,2428.2,2427.9,4.11874841]
[1749163547592,0.22870402,2428.6,2428.5,4.11776816]
[1749163547752,7.58594947,2428.6,2428.5,4.11776816]
[1749163547953,7.96229897,2428.6,2428.5,4.11776816]
[1749163548263,8.34449689,2428.6,2427.4,4.11963127]
[1749163548481,0.8195,2428.4,2428.0,4.11846673]
[1749163548650,0.77935456,2428.3,2427.8,4.11882798]
[1749163548851,6.975,2428.2,2427.6,16.0]
[1749163549054,6.975,2428.2,2427.9,4.11877384]
[1749163549256,8.87381717,2428.2,2427.9,4.11877384]
[1749163549468,8.49159974,2428.2,2428.0,4.1185352]
[1749163549678,8.49159974,2428.2,2427.8,4.11888457]
[1749163549887,8.49159974,2428.2,2427.9,4.11871008]
[1749163550074,8.49159974,2428.2,2428.0,4.11859649]
[1749163550395,1.17449543,2428.1,2428.0,4.11859649]
[1749163551775,8.14949543,2428.1,2428.0,4.11859649]
[1749163552493,1.36061369,2428.5,2428.3,4.11810731]
[1749163552800,0.22870402,2428.6,2428.5,4.11776816]
[1749163552979,7.58628832,2428.6,2428.5,4.11776816]
[1749163553186,7.58628832,2428.6,2428.4,4.1178498]
[1749163553383,0.3825336,2428.5,2428.4,4.1178498]
[1749163553582,1.08616376,2428.5,2428.4,4.1178498]
[1749163553761,1.46871417,2428.5,2428.4,4.1178498]
[1749163553956,1.08616376,2428.5,2428.4,4.1178498]
[1749163554388,1.46879824,2428.5,2428.4,4.1178498]
[1749163554586,1.08616376,2428.5,2428.4,4.1178498]
[1749163555173,1.08616376,2428.5,2428.3,4.11801625]
[1749163555555,0.82898678,2428.4,2427.4,9.3505767]
[1749163555796,0.82898678,2428.4,2427.5,16.0]
[1749163556094,0.82898678,2428.4,2428.2,4.11820351]
[1749163556599,6.975,2428.3,2428.2,4.11820351]
[1749163556772,6.975,2428.3,2428.1,4.11834537]
[1749163557098,6.975,2428.3,2428.2,4.11827691]
[1749163557802,1.08616376,2428.5,2428.4,4.11793773]
[1749163558093,7.35717119,2428.5,2428.4,4.11793773]
[1749163558306,8.33537548,2428.5,2428.4,4.11793773]
[1749163558505,1.36037548,2428.5,2428.4,4.11793773]
[1749163558712,0.22870402,2428.6,2428.5,4.11776816]
[1749163558861,8.18338488,2428.6,2428.5,4.11776816]
[1749163559214,11.43515777,2428.6,2428.5,4.11776816]
[1749163559491,8.18338488,2428.6,2428.4,4.11793773]
[1749163559709,1.7473546,2428.5,2428.4,4.11793773]
[1749163560287,1.36401836,2428.5,2428.4,4.11793773]
[1749163560488,1.36402147,2428.5,2428.4,4.11793773]
[1749163560707,1.36402147,2428.5,2428.3,4.11802829]
[1749163560708,8.19409341,2428.5,2428.3,4.11802829]
[1749163560859,0.98068086,2428.4,2428.2,4.11821318]
[1749163561063,7.21341255,2428.5,2428.2,4.11826377]
[1749163561303,0.98139057,2428.4,2428.3,4.11810731]
[1749163561455,0.22870402,2428.6,2428.4,4.11793773]
[1749163561661,8.33910497,2428.5,2428.4,4.11793773]
[1749163561861,8.33909465,2428.5,2428.4,4.11793773]
[1749163562093,7.95576596,2428.5,2428.4,4.11793773]
[1749163562276,0.98176596,2428.5,2428.4,4.11793773]
[1749163562458,0.22870402,2428.6,2428.5,4.11776816]
[1749163562659,7.20270402,2428.6,2428.5,4.11776816]
[1749163562880,7.58656604,2428.6,2428.5,4.11776816]
[1749163563092,7.20270402,2428.6,2428.5,4.11776816]
[1749163563496,7.58656954,2428.6,2428.5,4.11776816]
[1749163564024,7.58645591,2428.6,2428.5,4.11776816]
[1749163564161,7.58645609,2428.6,2428.5,4.11776816]
[1749163564356,7.96134963,2428.6,2428.5,4.11776816]
[1749163564563,12.59321989,2428.6,2427.8,4.11895543]
[1749163564864,5.2963579,2428.5,2428.2,4.11820161]
[1749163565221,1.98023541,2428.4,2428.2,4.11820161]
[1749163565395,1.75000613,2428.3,2428.2,4.11820161]
[1749163565698,0.7916,2428.2,2427.7,1.89]
[1749163565877,8.7230454,2428.1,2428.0,4.11849635]
[1749163566077,0.7916,2428.2,2427.9,4.11863557]
[1749163566078,1.45454615,2428.6,2428.3,4.11810731]
[1749163566278,0.22870402,2428.6,2428.5,4.11776816]
[1749163566605,8.18457698,2428.6,2428.5,4.11776816]
[1749163566790,8.95198447,2428.6,2428.5,4.11776816]
[1749163566965,9.87020698,2428.6,2428.5,4.11776816]
[1749163567317,8.56833196,2428.6,2428.5,4.11776816]
[1749163567470,8.56832668,2428.6,2428.5,4.11776816]
[1749163567661,7.20170402,2428.6,2428.5,4.11776816]
[1749163567869,8.18434436,2428.6,2428.5,4.11776816]
[1749163568091,8.18434277,2428.6,2428.5,4.11776816]
[1749163568266,8.568134,2428.6,2428.5,4.11776816]
[1749163568474,7.58544831,2428.6,2428.5,4.11776816]
[1749163569205,7.58546617,2428.6,2428.5,4.11776816]
[1749163569399,7.58545745,2428.6,2428.5,4.11776816]
[1749163569598,7.20170402,2428.6,2428.5,4.11776816]
[1749163570320,7.58546534,2428.6,2428.5,4.11776816]
[1749163570614,7.58541146,2428.6,2428.5,4.11776816]
[1749163570915,7.5854063,2428.6,2428.5,4.11776816]
[1749163571115,0.61240525,2428.6,2428.5,4.11776816]
[1749163571413,7.20070402,2428.6,2428.5,4.11776816]
[1749163571614,0.22870402,2428.6,2428.5,20.11776816]
[1749163572112,7.20070402,2428.6,2428.5,20.11776816]
[1749163572313,0.22870402,2428.6,2428.5,20.11776816]
[1749163572479,7.20070402,2428.6,2428.5,20.11776816]
[1749163572881,0.22870402,2428.6,2428.5,20.11776816]
[1749163573491,7.20070402,2428.6,2428.5,27.57834486]
[1749163575513,0.22870402,2428.6,2428.5,27.57834486]
[1749163575717,7.19970402,2428.6,2428.5,27.57834486]
[1749163578625,0.22870402,2428.6,2428.5,33.47414486]
[1749163578923,2.15113318,2429.1,2429.0,20.11692054]
[1749163579119,9.12113318,2429.1,2429.0,29.46549724]
[1749163581016,9.12013318,2429.1,2429.0,29.46549724]
[1749163582323,9.12013318,2429.1,2429.0,22.00492054]
[1749163582523,9.12013318,2429.1,2429.0,4.11692054]
[1749163582840,9.12013318,2429.1,2429.0,6.00492054]
[1749163583035,9.12013318,2429.1,2429.0,4.11692054]
[1749163583393,9.12013318,2429.1,2428.9,4.1170644]
[1749163583394,10.0321465,2429.1,2428.9,4.1170644]
[1749163583625,10.0321465,2429.1,2429.0,4.11692054]